fUSD/lending_fUSD_20240104
["ID","MTS","AMOUNT","RATE_DAILY","PERIOD"]
[310209802,1704400324945,-869.74762121,0.00037984,2]
[310209803,1704400324955,-9085.5441622,0.00037984,2]
[310209804,1704400324965,-459.16097923,0.00037984,2]
[310209805,1704400324974,-377.52847546,0.00037984,2]
[310209806,1704400324984,-14508.73958961,0.00037984,2]
[310209807,1704400324994,-225.03449943,0.00037984,2]
[310209808,1704400325004,-2030.67763751,0.00037984,2]
[310209809,1704400325014,-385.04497452,0.00037984,2]
[310209810,1704400325024,-522.07124699,0.00037984,2]
[310209811,1704400325034,-5479.6011553,0.00037984,2]
[310209812,1704400325045,-988.11653145,0.00037984,2]
[310209813,1704400325054,-347.29090382,0.00037984,2]
[310209814,1704400325064,-9303.14780492,0.00037984,2]
[310209815,1704400325078,-5000.0,0.00037984,2]
[310209816,1704400325088,-1750.64855101,0.00037984,2]
[310209817,1704400325098,-207.8514174,0.00037984,2]
[310209818,1704400325108,-500.0,0.00037984,2]
[310209819,1704400325118,-997.70476515,0.00037984,2]
[310209820,1704400325130,-170.01661785,0.00037984,3]
[310209821,1704400325140,-580.52704203,0.00037984,6]
[310209822,1704400325150,-499.0,0.00037984,5]
[310209823,1704400325159,-190791.36998383,0.00037984,3]
[310209824,1704400325169,-1161.17185388,0.00037984,3]
[310209825,1704400325179,-4134.37663574,0.00037984,2]
[310209826,1704400325189,-5766.84921572,0.00037984,7]
[310209827,1704400325198,-40472.82677668,0.00037984,3]
[310209828,1704400325209,-5124.0,0.00037984,120]
[310209829,1704400325219,-654.75720927,0.00037984,120]
[310209830,1704400325229,-2146.10776479,0.00037984,120]
[310209831,1704400325240,-1532.8163,0.00037984,30]
[310209832,1704400325251,-1401.84323398,0.00037984,120]
[310209833,1704400325261,-1621.16938614,0.00037984,120]
[310209834,1704400325271,-2195.76526045,0.00037984,30]
[310209835,1704400325281,-2588.53341883,0.00037984,120]
[310209836,1704400325290,-6580.95363722,0.00037984,25]
[310209837,1704400325301,-489.9542205,0.00037984,120]
[310209838,1704400325311,-934.66960107,0.00037984,90]
[310209839,1704400325321,-186.05733682,0.00037984,31]
[310209840,1704400325331,-3160.70917779,0.00037984,120]
[310209841,1704400325340,-364.62611346,0.00037984,30]
[310209842,1704400325350,-453.62374431,0.00037984,120]
[310209843,1704400325359,-341.22409567,0.00037984,30]
[310209844,1704400325369,-816.30256867,0.00037984,30]
[310209845,1704400325379,-2352.53838932,0.00037984,30]
[310209846,1704400325389,-700.2249279,0.00037984,120]
[310209847,1704400325399,-1098.21195729,0.00037984,30]
[310209848,1704400325410,-2000.0,0.00037984,90]
[310209849,1704400325420,-2904.42655576,0.00037984,120]
[310209850,1704400325430,-1471.55183217,0.00037984,60]
[310209851,1704400325439,-1986.04540974,0.00037984,30]
[310209852,1704400325449,-345.8788466,0.00037984,120]
[310209853,1704400325458,-2055.65648287,0.00037984,30]
[310209854,1704400325468,-257.82529002,0.00037984,120]
[310209855,1704400325477,-529.45001226,0.00037984,120]
[310209856,1704400325487,-1993.89468495,0.00037984,120]
[310209857,1704400325498,-1574.01343891,0.00037984,120]
[310209858,1704400325507,-585.72788045,0.00037984,120]
[310209859,1704400325517,-702.87234515,0.00037984,119]
[310209860,1704400325526,-820.04785127,0.00037984,120]
[310209861,1704400325536,-530.63834868,0.00037984,30]
[310209862,1704400325545,-1054.74590664,0.00037984,120]
[310209863,1704400325555,-245.01803409,0.00037984,120]
[310209864,1704400325565,-295.07775743,0.00037984,30]
[310209865,1704400325574,-408.86428641,0.00037984,120]
[310209866,1704400325583,-1141.18673212,0.00037984,120]
[310209867,1704400325593,-1721.10804502,0.00037984,120]
[310209868,1704400325602,-803.13599869,0.00037984,30]
[310209869,1704400325612,-2143.03675931,0.00037984,120]
[310209870,1704400325622,-282.83217923,0.00037984,120]
[310209871,1704400325632,-1100.50926727,0.00037984,120]
[310209872,1704400325642,-426.45540721,0.00037984,2]
[310209873,1704400325651,-1017.84695514,0.00037984,35]
[310209874,1704400325661,-699.34030988,0.00037984,120]
[310209875,1704400325671,-294.04037402,0.00037984,120]
[310209876,1704400325680,-371.63690113,0.00037984,120]
[310209877,1704400325689,-4572.70755393,0.00037984,120]
[310209878,1704400325699,-211.77156505,0.00037984,120]
[310209879,1704400325708,-1561.11044403,0.00037984,30]
[310209880,1704400325718,-333.39120429,0.00037984,120]
[310209881,1704400325727,-2224.05922593,0.00037984,120]
[310209882,1704400325739,-509.12972913,0.00037984,30]
[310209883,1704400325748,-287.67993196,0.00037984,30]
[310209884,1704400325758,-586.61363896,0.00037984,120]
[310209885,1704400325767,-2457.68399359,0.00037984,30]
[310209886,1704400325777,-327.83150728,0.00037984,120]
[310209887,1704400325786,-312.96262626,0.00037984,120]
[310209888,1704400325795,-3225.12699594,0.00037984,30]
[310209889,1704400325805,-253.24320206,0.00037984,30]
[310209890,1704400325814,-413.09545234,0.00037984,30]
[310209891,1704400325823,-192.17914822,0.00037984,60]
[310209892,1704400325833,-2166.81272141,0.00037984,60]
[310209893,1704400325843,-373.8126044,0.00037984,120]
[310209894,1704400325853,-2890.61280128,0.00037984,120]
[310209895,1704400325863,-37293.95726782,0.00037984,14]
[310209896,1704400325874,-677.23087089,0.00037984,30]
[310209897,1704400325884,-502.78103072,0.00037984,30]
[310209898,1704400325894,-1439.78852182,0.00037984,120]
[310209899,1704400325904,-206.36129248,0.00037984,120]
[310209900,1704400325914,-884.56029215,0.00037984,120]
[310209901,1704400325923,-709.84127105,0.00037984,120]
[310209902,1704400325933,-4999.999999,0.00037984,30]
[310209903,1704400325943,-2521.66167586,0.00037984,30]
[310209904,1704400325953,-3503.08566892,0.00037984,30]
[310209905,1704400325963,-2047.696329,0.00037984,30]
[310209906,1704400325972,-537.816359,0.00037984,63]
[310209907,1704400325982,-304.434167,0.00037984,30]
[310209908,1704400325991,-1000.0,0.00037984,2]
[310209909,1704400326001,-1000.0,0.00037984,2]
[310209910,1704400326010,-1000.0,0.00037984,2]
[310209911,1704400326020,-1000.0,0.00037984,2]
[310209912,1704400326030,-1000.0,0.00037984,2]
[310209913,1704400326039,-1000.0,0.00037984,2]
[310209914,1704400326049,-1000.0,0.00037984,2]
[310209915,1704400326058,-1000.0,0.00037984,2]
[310209916,1704400326068,-1000.0,0.00037984,2]
[310209917,1704400326079,-1000.0,0.00037984,2]
[310209918,1704400326089,-1395.429442,0.00037984,2]
[310209919,1704400326099,-1962.663427,0.00037984,30]
[310209920,1704400326109,-5531.39,0.00037984,5]
[310209921,1704400326118,-5531.39,0.00037984,5]
[310209922,1704400326128,-5531.39,0.00037984,5]
[310209923,1704400326138,-5531.39,0.00037984,5]
[310209924,1704400326148,-5531.39,0.00037984,5]
[310209925,1704400326158,-5531.39,0.00037984,5]
[310209926,1704400326167,-5531.39,0.00037984,5]
[310209927,1704400326286,-5531.39,0.00037984,5]
[310209928,1704400326297,-5531.39,0.00037984,5]
[310209929,1704400326307,-5531.39,0.00037984,5]
[310209930,1704400326316,-5531.39,0.00037984,5]
[310209931,1704400326326,-5531.39,0.00037984,5]
[310209932,1704400326335,-5531.39,0.00037984,5]
[310209933,1704400326344,-5531.39,0.00037984,5]
[310209934,1704400326354,-5531.39,0.00037984,5]
[310209935,1704400326363,-5531.39,0.00037984,5]
[310209936,1704400326373,-5531.39,0.00037984,5]
[310209937,1704400326382,-5531.39,0.00037984,5]
[310209938,1704400326392,-5531.39,0.00037984,5]
[310209939,1704400326402,-5531.39,0.00037984,5]
[310209940,1704400326411,-5531.39,0.00037984,5]
[310209941,1704400326421,-5531.39,0.00037984,5]
[310209942,1704400326430,-5531.39,0.00037984,5]
[310209943,1704400326440,-5531.59024284,0.00037984,5]
[310209944,1704400326449,-1859.69330101,0.00037984,2]
[310209945,1704400326459,-1000.0,0.00037984,31]
[310209946,1704400326469,-300.0,0.00037987,21]
[310209947,1704400326478,-200.0,0.00037987,20]
[310209948,1704400326488,-583767.0,0.0003799,2]
[310209949,1704400326498,-150.0,0.00037999,2]
[310209950,1704400326508,-100000.0,0.00038,8]
[310209951,1704400326517,-2000.17833314,0.00038,17]
[310209952,1704400326527,-108380.44681916,0.00038,4]
[310209953,1704400326537,-567.74666658,0.00038,4]
[310209954,1704400326547,-413.911,0.00038,2]
[310209955,1704400326556,-5000.0,0.00038,2]
[310209956,1704400326565,-544.65300302,0.00038,5]
[310209957,1704400326574,-122479.06687734,0.00038,11]
[310209958,1704400326584,-500.0,0.00038,5]
[310209959,1704400326594,-1500.0,0.00038,10]
[310209960,1704400326603,-2000.0,0.00038,2]
[310209961,1704400326612,-537823.98654918,0.00038,2]
[310209962,1704400326622,-1044.96544521,0.00038,2]
[310209963,1704400326631,-20000.0,0.00038,9]
[310209964,1704400326640,-494.79683114,0.00038,15]
[310209965,1704400326649,-16666.98641445,0.00038,8]
[310209966,1704400326660,-311.7547807,0.00038,16]
[310209967,1704400326670,-3108.33,0.00038,15]
[310209968,1704400326680,-3111.76,0.00038,5]
[310209969,1704400326691,-3125.0,0.00038,8]
[310209970,1704400326700,-12728.95620644,0.00038,2]
[310209971,1704400326710,-900.0,0.00038,2]
[310209972,1704400326720,-1000.0,0.00038,5]
[310209973,1704400326731,-1382.80475454,0.00038,3]
[310209974,1704400326741,-239.0,0.00038,2]
[310209975,1704400326750,-238.08508667,0.00038,2]
[310209976,1704400326759,-151.76501899,0.00038,14]
[310209977,1704400326769,-1000.0,0.00038,2]
[310209978,1704400326778,-325.61963289,0.00038019,14]
[310209979,1704400326788,-220.71423699,0.00038056,14]
[310209980,1704400326796,-837.87,0.00038078,30]
[310209981,1704400326805,-1105.69,0.00038082,2]
[310209982,1704400326816,-654.3,0.00038082,2]
[310209983,1704400326825,-809.33,0.00038082,2]
[310209984,1704400326834,-583.37,0.00038082,2]
[310209985,1704400326843,-570.2,0.00038082,2]
[310209986,1704400326853,-348.34179083,0.00038082,2]
[310209987,1704400326862,-500.0,0.00038082,2]
[310209988,1704400326873,-500.0,0.00038082,2]
[310209989,1704400326882,-500.0,0.00038082,2]
[310209990,1704400326892,-826.26,0.00038082,2]
[310209991,1704400326901,-500.0,0.00038082,2]
[310209992,1704400326912,-1785.82,0.00038082,2]
[310209993,1704400326922,-541.66,0.00038082,2]
[310209994,1704400326931,-702.0,0.00038082,2]
[310209995,1704400326941,-713.92,0.00038082,2]
[310209996,1704400326950,-508.08,0.00038082,2]
[310209997,1704400326963,-500.0,0.00038082,2]
[310209998,1704400326974,-605.7,0.00038082,2]
[310209999,1704400326983,-500.0,0.00038082,2]
[310210000,1704400326994,-617.34,0.00038082,2]
[310210001,1704400327003,-1053.81,0.00038082,2]
[310210002,1704400327013,-500.0,0.00038082,2]
[310210003,1704400327023,-500.0,0.00038082,2]
[310210004,1704400327042,-500.0,0.00038082,2]
[310210005,1704400327053,-637.91,0.00038082,2]
[310210006,1704400327063,-642.96,0.00038082,2]
[310210007,1704400327072,-500.0,0.00038082,2]
[310210008,1704400327083,-500.0,0.00038082,2]
[310210009,1704400327094,-500.0,0.00038082,2]
[310210010,1704400327103,-500.0,0.00038082,2]
[310210011,1704400327114,-583.92,0.00038082,2]
[310210012,1704400327124,-310.16569221,0.00038082,2]
[310210013,1704400327135,-1262.62,0.00038082,2]
[310210014,1704400327146,-644.12,0.00038082,2]
[310210015,1704400327155,-198.13,0.00038082,2]
[310210016,1704400327165,-501.37,0.00038082,2]
[310210017,1704400327175,-500.0,0.00038082,2]
[310210018,1704400327186,-500.0,0.00038082,2]
[310210019,1704400327195,-511.59,0.00038082,2]
[310210020,1704400327205,-192.69,0.00038082,2]
[310210021,1704400327215,-159.65,0.00038082,2]
[310210022,1704400327225,-500.0,0.00038082,2]
[310210023,1704400327234,-984.97,0.00038082,2]
[310210024,1704400327244,-500.0,0.00038082,2]
[310210025,1704400327253,-500.0,0.00038082,2]
[310210026,1704400327262,-500.0,0.00038082,2]
[310210027,1704400327271,-2813.94,0.00038082,2]
[310210028,1704400327281,-500.0,0.00038082,2]
[310210029,1704400327290,-500.0,0.00038082,2]
[310210030,1704400327301,-815.95,0.00038082,2]
[310210031,1704400327310,-4226.54,0.00038082,2]
[310210032,1704400327319,-1043.97,0.00038082,2]
[310210033,1704400327329,-579.28,0.00038082,2]
[310210034,1704400327339,-500.93,0.00038082,2]
[310210035,1704400327350,-1545.25,0.00038082,2]
[310210036,1704400327360,-896.7,0.00038082,2]
[310210037,1704400327370,-1118.72,0.00038082,2]
[310210038,1704400327380,-766.02,0.00038082,2]
[310210039,1704400327389,-525.53,0.00038082,2]
[310210040,1704400327401,-1839.95,0.00038082,2]
[310210041,1704400327410,-666.57,0.00038082,2]
[310210042,1704400327419,-1961.18,0.00038082,2]
[310210043,1704400327429,-650.88,0.00038082,2]
[310210044,1704400327438,-1047.53,0.00038082,2]
[310210045,1704400327447,-2743.39,0.00038082,2]
[310210046,1704400327457,-6488.11,0.00038082,2]
[310210047,1704400327467,-1207.75,0.00038082,2]
[310210048,1704400327478,-2300.26,0.00038082,2]
[310210049,1704400327489,-564.62,0.00038082,2]
[310210050,1704400327499,-802.32,0.00038082,2]
[310210051,1704400327510,-2212.73,0.00038082,2]
[310210052,1704400327519,-500.0,0.00038082,2]
[310210053,1704400327528,-8818.63,0.00038082,2]
[310210054,1704400327538,-554.47,0.00038082,2]
[310210055,1704400327548,-1988.3,0.00038082,2]
[310210056,1704400327557,-1033.94,0.00038082,2]
[310210057,1704400327568,-8023.99,0.00038082,2]
[310210058,1704400327578,-2729.72,0.00038082,2]
[310210059,1704400327589,-1421.2,0.00038082,2]
[310210060,1704400327600,-2075.81,0.00038082,2]
[310210061,1704400327610,-500.0,0.00038082,2]
[310210062,1704400327620,-500.0,0.00038082,2]
[310210063,1704400327631,-1492.24,0.00038082,2]
[310210064,1704400327640,-2507.15,0.00038082,2]
[310210065,1704400327650,-500.0,0.00038082,2]
[310210066,1704400327661,-5784.19,0.00038082,2]
[310210067,1704400327671,-1148.25,0.00038082,2]
[310210068,1704400327681,-512.73,0.00038082,2]
[310210069,1704400327690,-500.08,0.00038082,2]
[310210070,1704400327699,-102.87286304,0.00038082,2]
[310210071,1704400327919,-611.35713696,0.00038082,2]
[310210072,1704400327929,-238.17738437,0.00038082,2]
[310210073,1704400328168,-500.0,0.00032876,2]
[310210074,1704400328177,-500.0,0.0003315,2]
[310210075,1704400328188,-500.0,0.00033424,2]
[310210076,1704400328198,-327.91845062,0.00034,2]
[310210077,1704400328207,-327.91845062,0.00034,2]
[310210078,1704400328217,-327.91845062,0.00034,2]
[310210079,1704400328226,-327.91845062,0.00034,2]
[310210080,1704400328236,-327.91845062,0.00034,2]
[310210081,1704400328246,-327.91845062,0.00034,2]
[310210082,1704400328256,-327.91845062,0.00034,2]
[310210083,1704400328266,-2379.79,0.00036164,2]
[310210084,1704400328277,-500.0,0.00036438,2]
[310210085,1704400328287,-2379.79,0.00036438,2]
[310210086,1704400328297,-236.44,0.00036712,2]
[310210087,1704400328307,-2379.79,0.00036712,2]
[310210088,1704400328317,-2379.79,0.00036986,2]
[310210089,1704400328327,-2379.79,0.0003726,2]
[310210090,1704400328337,-344.26261563,0.00038082,2]
[310210091,1704400328346,-565.27,0.00038082,2]
[310210092,1704400328357,-799.36,0.00038082,2]
[310210093,1704400328366,-416.79151824,0.00038082,2]
[310210094,1704400328376,-1291.64,0.00038082,2]
[310210095,1704400328385,-500.0,0.00038082,2]
[310210096,1704400328395,-1533.04,0.00038082,2]
[310210097,1704400328409,-654.95,0.00038082,2]
[310210098,1704400328420,-1046.38,0.00038082,2]
[310210099,1704400328430,-1168.15,0.00038082,2]
[310210100,1704400328440,-1279.36,0.00038082,2]
[310210101,1704400328449,-774.31,0.00038082,2]
[310210102,1704400328459,-1178.66,0.00038082,2]
[310210103,1704400328469,-2705.72,0.00038082,2]
[310210104,1704400328479,-540.01,0.00038082,2]
[310210105,1704400328489,-800.68,0.00038082,2]
[310210106,1704400328503,-1033.15,0.00038082,2]
[310210107,1704400328513,-683.02,0.00038082,2]
[310210108,1704400328523,-664.5,0.00038082,2]
[310210109,1704400328532,-5429.5,0.00038082,2]
[310210110,1704400328542,-787.99,0.00038082,2]
[310210111,1704400328553,-1185.9,0.00038082,2]
[310210112,1704400328563,-502.99,0.00038082,2]
[310210113,1704400328572,-803.67,0.00038082,2]
[310210114,1704400328583,-703.08,0.00038082,2]
[310210115,1704400328593,-931.91,0.00038082,2]
[310210116,1704400328603,-3045.47,0.00038082,2]
[310210117,1704400328613,-423.29202348,0.00038082,2]
[310210118,1704400328623,-924.28,0.00038082,2]
[310210119,1704400328633,-612.45,0.00038082,2]
[310210120,1704400328643,-1719.17,0.00038082,2]
[310210121,1704400328653,-500.0,0.00038082,2]
[310210122,1704400328663,-1664.58,0.00038082,2]
[310210123,1704400328673,-650.67,0.00038082,2]
[310210124,1704400328682,-837.7,0.00038082,2]
[310210125,1704400328693,-651.85,0.00038082,2]
[310210126,1704400328704,-1763.88,0.00038082,2]
[310210127,1704400328715,-5455.26,0.00038082,2]
[310210128,1704400328726,-595.32,0.00038082,2]
[310210129,1704400328737,-864.85,0.00038082,2]
[310210130,1704400328748,-586.48,0.00038082,2]
[310210131,1704400328759,-618.44,0.00038082,2]
[310210132,1704400328769,-1928.75,0.00038082,2]
[310210133,1704400328780,-575.7,0.00038082,2]
[310210134,1704400328790,-2873.21,0.00038082,2]
[310210135,1704400328801,-589.02,0.00038082,2]
[310210136,1704400328812,-500.0,0.00038082,2]
[310210137,1704400328822,-507.64,0.00038082,2]
[310210138,1704400328837,-501.82,0.00038082,2]
[310210139,1704400328847,-500.0,0.00038082,2]
[310210140,1704400328858,-1565.07,0.00038082,2]
[310210141,1704400328868,-1472.89,0.00038082,2]
[310210142,1704400328881,-902.0,0.00038082,2]
[310210143,1704400328892,-500.0,0.00038082,2]
[310210144,1704400328903,-6496.65,0.00038082,2]
[310210145,1704400328915,-864.86,0.00038082,2]
[310210146,1704400328927,-539.42,0.00038082,2]
[310210147,1704400328938,-659.36,0.00038082,2]
[310210148,1704400328949,-2834.51,0.00038082,2]
[310210149,1704400328961,-500.0,0.00038082,2]
[310210150,1704400328972,-535.67,0.00038082,2]
[310210151,1704400328982,-772.31,0.00038082,2]
[310210152,1704400328994,-730.25,0.00038082,2]
[310210153,1704400329004,-500.0,0.00038082,2]
[310210154,1704400329015,-1511.83,0.00038082,2]
[310210155,1704400329027,-500.0,0.00038082,2]
[310210156,1704400329038,-597.99,0.00038082,2]
[310210157,1704400329050,-1373.46,0.00038082,2]
[310210158,1704400329062,-500.0,0.00038082,2]
[310210159,1704400329073,-500.0,0.00038082,2]
[310210160,1704400329083,-1411.58,0.00038082,2]
[310210161,1704400329094,-844.92,0.00038082,2]
[310210162,1704400329104,-1122.72,0.00038082,2]
[310210163,1704400329115,-500.0,0.00038082,2]
[310210164,1704400329126,-938.79,0.00038082,2]
[310210165,1704400329137,-700.27,0.00038082,2]
[310210166,1704400329148,-2603.65,0.00038082,2]
[310210167,1704400329160,-302.03,0.00038082,2]
[310210168,1704400329170,-690.56,0.00038082,2]
[310210169,1704400329183,-1114.57,0.00038082,2]
[310210170,1704400329194,-1863.03,0.00038082,2]
[310210171,1704400329205,-625.26,0.00038082,2]
[310210172,1704400329215,-1822.1,0.00038082,2]
[310210173,1704400329226,-524.64,0.00038082,2]
[310210174,1704400329236,-715.91,0.00038082,2]
[310210175,1704400329249,-1359.04,0.00038082,2]
[310210176,1704400329260,-1608.139383,0.00038082,14]
[310210177,1704400329270,-153.84,0.00038116,2]
[310210178,1704400329280,-1087.0,0.00038121,20]
[310210179,1704400329290,-464.0,0.00038121,20]
[310210180,1704400329300,-220.71423699,0.00038124,14]
[310210181,1704400329311,-325.61963289,0.00038165,14]
[310210182,1704400329321,-157.40104,0.00038198,2]
[310210183,1704400329331,-43589.63,0.000382,7]
[310210184,1704400329341,-25696.93,0.000382,7]
[310210185,1704400329351,-6528.34,0.000382,7]
[310210186,1704400329363,-1148.99724379,0.000382,3]
[310210187,1704400329374,-500.0,0.00038228,7]
[310210188,1704400329387,-500.0,0.00038228,7]
[310210189,1704400329399,-756.29,0.00038268,2]
[310210190,1704400329413,-150.0,0.00038302,2]
[310210191,1704400329423,-151.76501899,0.00038311,14]
[310210192,1704400329434,-227.0,0.00038319,20]
[310210193,1704400329444,-16208.0,0.00038321,20]
[310210194,1704400329457,-837.87,0.00038328,30]
[310210195,1704400329467,-16678.3391562,0.0003833,2]
[310210196,1704400329479,-5673.8,0.00038352,2]
[310210197,1704400329489,-250.0,0.00038356,7]
[310210198,1704400329501,-1105.69,0.00038356,2]
[310210199,1704400329511,-654.3,0.00038356,2]
[310210200,1704400329521,-714.31329632,0.00038356,30]
[310210201,1704400329574,-2379.79,0.00037534,2]
[310210202,1704400329585,-884.61134209,0.00038356,30]
[310210203,1704400329595,-666.0,0.00038356,2]
[310210204,1704400329606,-809.33,0.00038356,2]
[310210205,1704400329616,-785.36,0.00038356,2]
[310210206,1704400329626,-865.6,0.00038356,2]
[310210207,1704400329637,-865.6,0.00038356,2]
[310210208,1704400329647,-865.6,0.00038356,2]
[310210209,1704400329659,-865.6,0.00038356,2]
[310210210,1704400329670,-865.6,0.00038356,2]
[310210211,1704400329682,-865.6,0.00038356,2]
[310210212,1704400329691,-865.6,0.00038356,2]
[310210213,1704400329702,-865.6,0.00038356,2]
[310210214,1704400329714,-865.6,0.00038356,2]
[310210215,1704400329724,-865.6,0.00038356,2]
[310210216,1704400329734,-865.6,0.00038356,2]
[310210217,1704400329744,-865.6,0.00038356,2]
[310210218,1704400329754,-865.6,0.00038356,2]
[310210219,1704400329764,-865.6,0.00038356,2]
[310210220,1704400329775,-865.6,0.00038356,2]
[310210221,1704400329785,-580.51907404,0.00038356,2]
[310210222,1704400330536,-500.0,0.00032876,2]
[310210223,1704400330546,-31.5499996,0.0003315,2]
[310210224,1704400330558,-468.4500004,0.0003315,2]
[310210225,1704400330566,-214.70999962,0.00033424,2]
[310210226,1704400330578,-285.29000038,0.00033424,2]
[310210227,1704400330587,-500.0,0.00033698,2]
[310210228,1704400330596,-500.0,0.00033972,2]
[310210229,1704400330606,-500.0,0.00034246,2]
[310210230,1704400330618,-500.0,0.0003452,2]
[310210231,1704400330628,-2379.79,0.00037808,2]
[310210232,1704400330638,-2379.79,0.00038082,2]
[310210233,1704400330647,-285.08092596,0.00038356,2]
[310210234,1704400330657,-865.6,0.00038356,2]
[310210235,1704400330667,-865.6,0.00038356,2]
[310210236,1704400330678,-865.6,0.00038356,2]
[310210237,1704400330689,-865.6,0.00038356,2]
[310210238,1704400330699,-865.6,0.00038356,2]
[310210239,1704400330709,-570.2,0.00038356,2]
[310210240,1704400330718,-500.0,0.00038356,2]
[310210241,1704400330728,-500.0,0.00038356,2]
[310210242,1704400330737,-826.26,0.00038356,2]
[310210243,1704400330748,-500.0,0.00038356,2]
[310210244,1704400330757,-1785.82,0.00038356,2]
[310210245,1704400330767,-541.66,0.00038356,2]
[310210246,1704400330778,-702.0,0.00038356,2]
[310210247,1704400330787,-713.92,0.00038356,2]
[310210248,1704400330799,-508.08,0.00038356,2]
[310210249,1704400330809,-500.0,0.00038356,2]
[310210250,1704400330818,-605.7,0.00038356,2]
[310210251,1704400330829,-335.04843645,0.00038356,2]
[310210252,1704400330839,-617.34,0.00038356,2]
[310210253,1704400330851,-1053.81,0.00038356,2]
[310210254,1704400330862,-520.92489264,0.00038356,2]
[310210255,1704400330873,-500.0,0.00038356,2]
[310210256,1704400330883,-637.91,0.00038356,2]
[310210257,1704400330893,-642.96,0.00038356,2]
[310210258,1704400330903,-438.24,0.00038356,2]
[310210259,1704400330913,-500.0,0.00038356,2]
[310210260,1704400330923,-500.0,0.00038356,2]
[310210261,1704400330933,-347.65416933,0.00038356,2]
[310210262,1704400330946,-583.92,0.00038356,2]
[310210263,1704400330956,-1262.62,0.00038356,2]
[310210264,1704400330967,-644.12,0.00038356,2]
[310210265,1704400330977,-501.37,0.00038356,2]
[310210266,1704400330987,-500.0,0.00038356,2]
[310210267,1704400330999,-500.0,0.00038356,2]
[310210268,1704400331008,-511.59,0.00038356,2]
[310210269,1704400331019,-159.65,0.00038356,2]
[310210270,1704400331029,-500.0,0.00038356,2]
[310210271,1704400331039,-984.97,0.00038356,2]
[310210272,1704400331049,-455.13087474,0.00038356,2]
[310210273,1704400331059,-500.0,0.00038356,2]
[310210274,1704400331072,-500.0,0.00038356,2]
[310210275,1704400331083,-2813.94,0.00038356,2]
[310210276,1704400331093,-590.59,0.00038356,2]
[310210277,1704400331102,-500.0,0.00038356,2]
[310210278,1704400331112,-815.95,0.00038356,2]
[310210279,1704400331122,-2673.88911603,0.00038356,2]
[310210280,1704400331137,-1500.0,0.00038356,2]
[310210281,1704400331150,-52.65088397,0.00038356,2]
[310210282,1704400331160,-414.43804099,0.00038356,2]
[310210283,1704400331172,-86.49195901,0.00038356,2]
[310210284,1704400331182,-783.73379339,0.00038356,2]
[310210328,1704401431698,-262.58894495,0.00024463,2]
[310210329,1704401431708,-170.46,0.00024464,2]
[310210330,1704401431718,-475.52938166,0.00026899,2]
[310210331,1704401431732,-538.88,0.00026899,2]
[310210332,1704401431745,-1606.59061834,0.00026899,2]
[310210333,1704401431755,-163.66223882,0.000269,2]
[310210334,1704401431767,-21.38183978,0.00026998,2]
[310210335,1704401431784,-128.61816022,0.00026998,2]
[310210336,1704401431793,-370.54718235,0.00026999,2]
[310210337,1704401431805,-576.23513454,0.00026999,2]
[310210338,1704401431818,-9923.58719235,0.00026999,2]
[310210339,1704401431828,-250.0,0.00027,3]
[310210340,1704401431838,-490.82,0.00028593,2]
[310210341,1704401431847,-279.28915179,0.00028767,2]
[310210342,1704401431857,-256.30365586,0.00029,3]
[310210343,1704401431883,-43.69634414,0.00029,3]
[310210344,1704401431896,-560.58595787,0.0002903,5]